bitfinex/quotes_ETHUSD_20251031
["timestamp","ask_amount","ask_price","bid_price","bid_amount"]
[1761920991324,0.405504,3858.9,3858.8,0.002]
[1761920991525,6.56208,3858.9,3858.8,0.002]
[1761920991739,6.092849,3858.9,3858.8,0.002]
[1761920992109,5.138332,3858.9,3858.8,0.002]
[1761920992425,7.977788,3858.9,3858.8,0.002]
[1761920992728,8.7859591,3858.9,3858.8,0.002]
[1761920992934,7.977788,3858.9,3858.8,0.002]
[1761920993250,3.473312,3858.9,3858.8,0.002]
[1761920993528,1.39968,3859.4,3858.8,0.002]
[1761920993529,2.372664,3859.3,3858.8,0.002]
[1761920993744,0.405504,3859.3,3858.9,2.59141206]
[1761920993922,0.405504,3859.3,3858.8,0.002]
[1761920994406,6.20745978,3859.7,3859.1,2.59123746]
[1761920994812,0.405504,3859.6,3859.1,2.59123746]
[1761920995014,0.405504,3859.6,3858.9,2.59141206]
[1761920995409,0.405504,3859.6,3859.1,2.59123464]
[1761920995925,0.405504,3859.6,3859.2,2.59118503]
[1761920996149,6.20745978,3859.7,3859.1,2.59125375]
[1761920996457,0.405504,3859.6,3858.8,2.85542713]
[1761920996758,0.405504,3859.6,3859.2,2.59115479]
[1761920997033,6.20745978,3859.7,3858.9,0.28554271]
[1761920997258,0.534304,3859.0,3858.9,2.87695477]
[1761920998547,0.405504,3859.0,3858.9,2.87695477]
[1761921000308,0.1288,3858.9,3858.8,2.59347921]
[1761921000864,0.534304,3858.9,3858.8,0.002]
[1761921001666,32.0780835,3858.9,3858.8,0.002]
[1761921001958,28.4703727,3858.5,3858.4,0.002]
[1761921002311,28.73896942,3858.5,3858.4,0.002]
[1761921002518,34.90129118,3858.5,3858.4,0.002]
[1761921003519,34.63269446,3858.5,3858.4,0.002]
[1761921003719,34.63189446,3858.5,3858.4,0.002]
[1761921003933,28.675802,3858.1,3858.0,0.002]
[1761921004136,31.8726384,3858.1,3858.0,0.002]
[1761921004656,22.544161,3858.1,3858.0,0.002]
[1761921005020,12.978524,3858.1,3858.0,0.002]
[1761921005222,15.5704734,3858.1,3857.6,0.002]
[1761921005520,34.11455297,3857.3,3857.1,0.005]
[1761921005915,34.38314969,3857.3,3857.1,0.005]
[1761921006124,34.11455297,3857.3,3857.1,0.005]
[1761921006457,16.822653,3857.3,3857.1,0.005]
[1761921006672,11.724567,3857.3,3857.1,0.005]
[1761921006824,13.73864731,3857.3,3857.1,0.005]
[1761921007025,9.98187631,3857.3,3857.1,0.005]
[1761921007220,6.352524,3857.3,3857.1,0.005]
[1761921007659,2.591332,3857.3,3857.1,0.005]
[1761921007859,0.405504,3857.3,3857.1,0.005]
[1761921008070,2.520341,3857.3,3857.1,0.005]
[1761921008272,3.472881,3857.3,3857.1,0.005]
[1761921008435,3.6552451,3857.3,3857.1,0.005]
[1761921008770,2.9386491,3857.3,3857.1,0.005]
[1761921008970,4.3383291,3857.3,3857.1,0.005]
[1761921009336,4.44229419,3857.3,3857.1,0.005]
[1761921009534,4.84892416,3857.3,3857.1,0.005]
[1761921009856,34.56580616,3857.3,3857.1,0.005]
[1761921010464,31.97331919,3857.3,3857.1,0.005]
[1761921010978,34.97254857,3857.3,3857.1,0.005]
[1761921011140,15.0545406,3857.3,3857.1,0.005]
[1761921011475,8.1238266,3857.3,3857.1,0.005]
[1761921011677,20.66150016,3857.3,3857.1,0.005]
[1761921011852,40.72601759,3857.2,3857.1,0.005]
[1761921012051,43.33752913,3857.2,3857.1,0.005]
[1761921012443,43.25437985,3857.2,3857.1,0.005]
[1761921012643,43.60612585,3857.2,3857.1,0.005]
[1761921013956,43.47652585,3857.2,3857.1,0.005]
[1761921014480,10.84469372,3857.2,3857.1,0.005]
[1761921014636,3.81791218,3857.2,3857.1,0.005]
[1761921015054,5.62309618,3857.2,3857.1,0.005]
[1761921015250,0.81362118,3857.2,3857.1,0.005]
[1761921015456,0.40677666,3857.2,3857.1,0.005]
[1761921016080,0.40677666,3857.2,3857.1,2.59762139]
[1761921016968,0.40677666,3857.2,3857.1,3.11685885]
[1761921017561,0.40677666,3857.2,3857.1,0.52623746]
[1761921017787,0.81228066,3857.2,3857.1,2.59962139]
[1761921017962,0.40677666,3857.2,3857.1,2.59962139]
[1761921018362,0.001,3857.6,3857.1,0.007]
[1761921018606,0.001,3857.6,3857.2,2.59254881]
[1761921018784,6.246019,3857.3,3857.1,0.007]
[1761921018958,0.001,3857.6,3857.1,0.007]
[1761921018959,0.405504,3857.2,3857.1,0.007]
[1761921019159,0.001,3857.6,3857.1,0.007]
[1761921019393,0.001,3857.6,3857.2,2.59250978]
[1761921019717,0.1296,3857.2,3857.1,2.59959967]
[1761921019857,0.1296,3857.2,3857.1,3.11902859]
[1761921020061,0.1296,3857.2,3857.1,0.52642892]
[1761921020287,0.1296,3857.2,3857.1,2.59962139]
[1761921020659,0.1296,3857.2,3857.1,0.007]
[1761921021562,11.38920978,3857.2,3857.1,0.007]
[1761921021774,10.02422778,3857.2,3857.1,0.007]
[1761921021992,6.74256378,3857.2,3857.1,0.007]
[1761921022197,9.04133078,3857.2,3857.1,0.007]
[1761921022498,6.61296378,3857.2,3857.1,2.59962139]
[1761921023309,6.61296378,3857.2,3857.1,0.007]
[1761921023461,11.35796416,3857.2,3857.1,0.007]
[1761921023665,9.85959816,3857.2,3857.1,0.007]
[1761921024488,20.97390116,3857.2,3857.1,0.007]
[1761921024693,20.76364316,3857.2,3857.1,0.007]
[1761921025508,15.96241916,3857.2,3857.1,0.007]
[1761921025692,12.07807016,3857.2,3857.1,0.007]
[1761921026005,7.27426016,3857.2,3857.1,0.007]
[1761921026233,9.55443816,3857.2,3857.1,0.007]
[1761921026713,12.00695616,3857.2,3857.1,0.007]
[1761921027072,19.88843357,3857.2,3857.1,0.007]
[1761921027271,13.40663616,3857.2,3857.1,0.007]
[1761921027494,7.27426016,3857.2,3857.1,0.007]
[1761921027698,6.20745978,3857.2,3857.1,2.59962139]
[1761921028080,6.61296378,3857.2,3857.1,2.59962139]
[1761921028974,0.001,3857.6,3857.5,2.59235255]
[1761921029216,0.0002,3857.6,3857.5,2.59235255]
[1761921029586,0.0002,3857.6,3857.5,2.61827607]
[1761921029804,0.0002,3857.6,3857.5,3.39860247]
[1761921030017,0.0002,3857.6,3857.5,3.37267895]
[1761921030221,0.0002,3857.6,3857.1,0.007]
[1761921030405,0.405504,3857.4,3857.1,0.007]
[1761921031227,0.0002,3857.6,3857.1,0.007]
[1761921031228,0.405504,3857.2,3857.1,0.007]
[1761921031439,13.259761,3857.2,3857.1,0.007]
[1761921031650,0.405504,3857.2,3857.1,0.007]
[1761921032634,4.316679,3857.2,3857.1,0.007]
[1761921032839,4.7483469,3857.2,3857.1,0.007]
[1761921032995,0.405504,3857.2,3857.1,0.007]
[1761921033595,2.895747,3857.2,3857.1,0.007]
[1761921033793,0.405504,3857.2,3857.1,0.007]
[1761921033996,1.805184,3857.2,3857.1,0.007]
[1761921034332,9.111799,3857.2,3857.1,0.007]
[1761921034531,10.28222644,3857.2,3857.1,0.007]
[1761921034717,10.68896396,3857.2,3857.1,0.007]
[1761921035034,12.72243396,3857.2,3857.1,0.007]
[1761921035334,11.87543396,3857.2,3857.1,0.007]
[1761921035534,9.96166496,3857.2,3857.1,0.007]
[1761921036096,10.23890096,3857.2,3857.1,0.007]
[1761921037136,11.38801896,3857.2,3857.1,0.007]
[1761921038010,15.25154596,3857.2,3857.1,0.007]
[1761921038413,13.27850196,3857.2,3857.1,0.007]
[1761921038614,5.24697552,3857.2,3857.1,0.007]
[1761921038857,4.840238,3857.2,3857.1,0.007]
[1761921039061,0.001,3857.2,3857.1,0.007]
[1761921039351,2.999062,3857.2,3857.1,0.007]
[1761921039650,0.001,3857.2,3857.1,0.007]
[1761921039954,0.406504,3857.2,3857.1,3.11906959]
[1761921040165,0.001,3857.2,3857.1,2.59962139]
[1761921040515,0.001,3857.2,3857.1,4.0252276]
[1761921040715,0.001,3857.2,3857.1,3.99930139]
[1761921042757,0.001,3857.2,3857.1,4.0252276]
[1761921043061,0.001,3857.2,3857.1,3.99930139]
[1761921043360,0.001,3857.2,3857.1,2.59962139]
[1761921043858,0.001,3857.2,3857.1,2.6255476]
[1761921045128,0.001,3857.2,3857.1,2.59962139]
[1761921045751,0.001,3857.2,3857.1,0.007]
[1761921045953,0.001,3857.2,3857.1,2.59962139]
[1761921046850,0.001,3857.2,3857.1,3.12165121]
[1761921048022,0.001,3857.2,3857.1,2.59962139]
[1761921048222,0.001,3857.2,3857.1,2.6255476]
[1761921048424,0.001,3857.2,3857.1,2.59962139]
[1761921050021,5.085759,3857.2,3857.1,0.007]
[1761921050360,8.974829,3857.2,3857.1,0.007]
[1761921050559,10.13154757,3857.2,3857.1,0.007]
[1761921050861,11.53122757,3857.2,3857.1,0.007]
[1761921051161,2.96290257,3857.2,3857.1,0.007]
[1761921051461,11.149759,3857.2,3857.1,0.007]
[1761921051619,7.594733,3857.2,3857.1,0.007]
[1761921051823,6.132946,3857.2,3857.1,0.007]
[1761921052134,1.806184,3857.2,3857.1,0.007]
[1761921052334,7.843457,3857.2,3857.1,0.007]
[1761921052569,8.6278027,3857.2,3857.1,0.007]
[1761921052775,4.8869027,3857.2,3857.1,0.007]
[1761921053279,2.5905297,3857.2,3857.1,0.007]
[1761921053479,4.445959,3857.2,3857.1,0.007]
[1761921054047,1.806184,3857.2,3857.1,0.007]
[1761921054246,19.865703,3857.2,3857.1,0.007]
[1761921054447,9.785691,3857.2,3857.1,0.007]
[1761921054899,9.455093,3857.2,3857.1,0.007]
[1761921055103,14.3656143,3857.2,3857.1,0.007]
[1761921055247,16.95816848,3857.2,3857.1,0.007]
[1761921055447,2.99825984,3856.9,3856.8,0.002]
[1761921055690,34.11488906,3856.8,3856.7,0.002]
[1761921055905,2.593092,3856.4,3856.3,0.002]
[1761921056059,29.67090649,3856.2,3856.1,0.005]
[1761921056251,28.15219749,3856.2,3856.1,0.005]
[1761921056452,28.15219749,3856.2,3854.1,0.01]
[1761921056453,0.405504,3855.2,3854.1,0.01]
[1761921056648,34.11596514,3855.2,3854.1,0.01]
[1761921056865,15.44893606,3855.2,3854.1,0.01]
[1761921057060,28.34214205,3855.2,3854.1,0.01]
[1761921057294,25.74824291,3855.2,3854.1,0.01]
[1761921057475,28.34214205,3855.2,3854.1,0.01]
[1761921057791,22.87872691,3855.2,3854.1,0.01]
[1761921057988,4.82768291,3855.2,3854.6,2.59425175]
[1761921058153,7.467266,3855.2,3854.6,2.59425175]
[1761921058345,6.76307,3855.2,3854.7,2.59423174]
[1761921058687,3.066832,3855.2,3854.2,0.02594572]
[1761921058849,3.066832,3855.2,3854.7,2.59422386]
[1761921059050,3.066832,3855.2,3854.4,2.59438319]
[1761921059275,7.560695,3855.2,3854.1,0.01]
[1761921059475,7.560695,3855.2,3854.1,0.03594639]
[1761921059786,2.911628,3855.2,3854.9,2.5940442]
[1761921060081,0.405504,3855.2,3854.1,1.43562639]
[1761921060285,0.405504,3855.2,3854.7,2.59423023]
[1761921060583,3.716628,3855.2,3854.1,0.01]
[1761921060784,5.52866777,3855.2,3854.6,2.59428733]
[1761921061081,0.81786377,3855.2,3854.1,2.6046248]
[1761921061286,0.405504,3855.2,3854.2,0.02594572]
[1761921061585,2.911628,3855.2,3854.8,2.59415286]
[1761921061963,2.911628,3855.2,3854.1,0.01]
[1761921062163,3.716628,3855.2,3854.1,0.01]
[1761921062389,2.911628,3855.2,3854.1,0.01]
[1761921062683,4.311308,3855.2,3854.2,2.59456285]
[1761921062886,4.311308,3855.2,3854.1,0.01]
[1761921062887,5.04251275,3855.2,3854.1,0.01]
[1761921063087,7.63641189,3855.2,3854.1,0.01]
[1761921063291,25.72273775,3855.2,3854.1,0.01]
[1761921063491,34.52409667,3855.2,3854.1,0.01]
[1761921063892,1.805184,3854.2,3854.1,0.01]
[1761921064201,20.6545984,3854.2,3854.1,0.01]
[1761921064499,14.7514674,3854.2,3854.1,0.01]
[1761921064675,0.405504,3855.1,3854.1,0.01]
[1761921064854,3.719072,3854.2,3854.1,0.01]
[1761921065812,0.405504,3854.2,3854.1,0.01]
[1761921066016,0.405504,3854.2,3854.1,2.60463947]
[1761921066367,0.405504,3854.2,3854.1,0.01]
[1761921066670,6.842484,3854.2,3854.1,0.01]
[1761921066901,6.7659284,3854.2,3854.1,0.01]
[1761921067487,18.9442924,3854.2,3854.1,0.01]
[1761921067702,15.8522084,3854.2,3854.1,0.01]
[1761921067901,10.5560724,3854.2,3854.1,0.01]
[1761921068105,4.7452864,3854.2,3854.1,0.01]
[1761921068415,1.39968,3855.0,3854.1,0.01]
[1761921068618,5.986689,3854.7,3854.1,0.01]
[1761921068933,5.927209,3855.1,3854.1,0.01]
[1761921069135,0.405504,3854.8,3854.3,2.59446855]
[1761921069334,8.31395,3854.9,3854.4,0.02594437]
[1761921069335,0.40708096,3854.9,3854.4,0.02594437]
[1761921069490,0.7802087,3856.8,3854.8,2.5941683]
[1761921069831,0.001,3855.1,3854.1,0.012]
[1761921070689,0.405504,3854.9,3854.1,0.012]
[1761921070906,0.405504,3854.5,3854.1,0.012]
[1761921071142,1.805184,3854.3,3854.1,0.012]
[1761921071302,3.94188,3854.2,3854.1,0.012]
[1761921071638,4.476036,3854.2,3854.1,0.012]
[1761921072133,2.33934,3854.2,3854.1,0.012]
[1761921072335,8.953418,3854.2,3854.1,0.012]
[1761921072534,6.750286,3854.2,3854.1,0.012]
[1761921072918,7.56441679,3854.2,3854.1,0.012]
[1761921073121,2.61931479,3854.2,3854.1,0.012]
[1761921073498,7.36128085,3854.2,3854.1,0.012]
[1761921073838,1.805184,3854.2,3854.1,0.012]
[1761921074025,4.785158,3854.2,3854.1,0.012]
[1761921074223,17.04626,3854.2,3854.1,0.012]
[1761921074420,11.718464,3854.2,3854.1,0.012]
[1761921074599,11.255554,3854.2,3854.1,0.012]
[1761921074931,12.655234,3854.2,3854.1,0.012]
[1761921075354,10.831229,3854.2,3854.1,0.012]
[1761921076232,20.890854,3854.2,3854.1,0.012]
[1761921076464,19.429119,3854.2,3854.1,0.012]
[1761921076663,22.02369115,3854.2,3854.1,0.012]
[1761921076961,19.429119,3854.2,3854.1,0.012]
[1761921077149,22.02369115,3854.2,3854.1,0.012]
[1761921077456,27.19718615,3854.2,3854.1,0.012]
[1761921078066,24.602614,3854.2,3854.1,0.012]
[1761921078253,28.41530615,3854.2,3854.1,0.012]
[1761921078764,24.60757415,3854.2,3854.1,0.012]
[1761921079322,31.72235315,3854.2,3854.1,0.012]
[1761921079976,31.31764915,3854.2,3854.1,0.012]
[1761921080327,35.41576015,3854.2,3854.1,0.012]
[1761921080935,31.02201545,3853.8,3853.7,0.002]
[1761921081140,29.62784092,3853.8,3853.7,0.002]
[1761921081335,13.96603647,3853.8,3853.7,0.002]
[1761921081647,6.06723847,3853.8,3853.7,0.002]
[1761921081824,5.02194747,3853.8,3853.7,0.002]
[1761921082362,8.408928,3853.8,3853.7,0.002]
[1761921083331,19.337115,3853.8,3853.7,0.002]
[1761921083652,5.716268,3853.8,3853.7,0.002]
[1761921083974,8.41972365,3853.8,3853.7,0.002]
[1761921084274,10.42899265,3853.8,3853.7,0.002]
[1761921084431,6.61453965,3853.8,3853.7,0.002]
[1761921084632,6.20745978,3853.8,3853.7,2.59690878]
[1761921085078,3.803879,3854.9,3853.7,0.5211912]
[1761921085365,3.870291,3854.9,3854.3,2.59449071]
[1761921085572,3.870291,3854.9,3854.1,2.59458307]
[1761921085573,1.39968,3854.9,3854.4,2.59441901]
[1761921085775,0.001,3855.1,3854.8,2.59411736]
[1761921086075,0.001,3855.1,3855.0,2.59403372]
[1761921086572,0.1296,3855.0,3853.8,2.59482734]
[1761921086768,0.001,3855.1,3853.9,0.31160185]
[1761921086971,0.001,3855.1,3852.3,2.59582202]
[1761921086972,1.39968,3854.9,3854.0,0.02594706]
[1761921087173,0.405504,3854.6,3853.7,0.002]
[1761921087394,0.405504,3854.4,3854.0,2.594679]
[1761921087528,22.44709,3855.0,3854.0,2.594679]
[1761921087726,0.405504,3854.5,3854.0,2.594679]
[1761921087929,0.405504,3854.5,3853.8,2.59484145]
[1761921088130,0.405504,3854.7,3854.0,2.59465735]
[1761921088673,0.405504,3854.7,3853.8,0.25968414]
[1761921088996,0.001,3855.1,3853.7,0.002]
[1761921088997,0.001,3855.1,3854.1,0.02594639]
[1761921089139,0.001,3855.1,3855.0,2.59403372]
[1761921091102,0.01,3856.7,3856.6,2.59295752]
[1761921091402,0.01,3856.7,3856.6,2.61888709]
[1761921091547,0.01,3856.7,3856.6,2.59295752]
[1761921091752,0.01,3856.7,3856.6,3.11155768]
[1761921092146,0.01,3856.7,3855.0,1.39968]
[1761921092348,0.01,3856.7,3856.2,2.59321963]
[1761921092586,0.01,3856.7,3855.5,1.39968]
[1761921092900,0.01,3856.7,3856.0,2.59336006]
[1761921093049,0.01,3856.7,3854.5,1.39968]
[1761921093255,0.01,3856.7,3856.1,2.59328751]
[1761921093451,0.01,3856.7,3855.0,2.59403372]
[1761921093758,0.01,3856.7,3856.6,2.59295752]
[1761921094293,0.405504,3856.5,3856.4,2.59309113]
[1761921096031,0.01,3856.7,3854.8,1.39968]
[1761921096182,0.01,3856.7,3855.2,1.39968]
[1761921096726,0.405504,3856.3,3855.5,2.59364941]
[1761921097024,0.405504,3856.3,3856.2,2.59322649]
[1761921097321,0.01,3856.7,3856.1,2.59329121]
[1761921097322,0.405504,3856.5,3856.1,2.59329121]
[1761921097505,0.405504,3856.0,3854.8,0.1296]
[1761921097711,0.405504,3856.0,3855.9,2.59342825]
[1761921097898,0.405504,3856.0,3855.8,2.59347399]
[1761921098096,0.1296,3855.4,3854.8,0.1296]
[1761921098283,0.405504,3855.4,3855.3,2.59383186]
[1761921098831,0.01,3856.7,3855.2,2.59383752]
[1761921098832,0.535104,3855.3,3855.2,2.59383752]
[1761921098986,0.405504,3856.5,3855.3,2.59382877]
[1761921099323,0.405504,3856.3,3855.4,0.02593764]
[1761921099477,0.405504,3856.5,3855.9,2.59342767]
[1761921099682,0.01,3856.7,3856.1,2.59323405]
[1761921100137,0.535104,3856.1,3856.0,2.593346]
[1761921100308,0.535104,3856.1,3854.6,0.39941175]
[1761921100309,0.405504,3856.0,3854.6,0.39941175]
[1761921100493,3.480217,3856.6,3855.9,2.59342825]
[1761921100687,0.405504,3856.5,3855.9,2.59342825]
[1761921100883,0.535104,3855.9,3855.8,2.61941027]
[1761921101224,0.1296,3855.9,3855.8,2.59347532]
[1761921101600,0.1296,3855.9,3855.8,2.61941027]
[1761921101923,0.01,3856.7,3856.6,2.59295752]
[1761921102498,0.01,3856.7,3855.8,0.66126694]
[1761921102710,0.01,3856.7,3855.4,1.39968]
[1761921103038,0.1296,3855.6,3855.5,2.59369731]
[1761921103997,0.1296,3855.6,3855.5,2.61963428]
[1761921104197,0.1296,3855.6,3855.5,2.59369731]
[1761921104442,0.01,3856.7,3856.1,2.59329374]
[1761921104744,0.0092,3856.7,3856.6,2.59295752]
[1761921105259,0.0092,3856.7,3856.6,4.01856709]
[1761921105613,0.0092,3856.7,3856.6,3.99263752]
[1761921106068,0.0092,3856.7,3856.3,1.39968]
[1761921106244,0.0092,3856.7,3856.6,2.59295752]
[1761921107328,0.0092,3856.7,3856.6,3.11156168]
[1761921107720,0.0092,3856.7,3856.6,2.59295752]
[1761921108414,0.1388,3856.7,3856.6,2.59295752]
[1761921108615,0.0092,3856.7,3856.6,2.59295752]
[1761921108975,0.0092,3856.7,3856.6,4.01856709]
[1761921109129,0.0002,3857.2,3857.1,2.59262139]
[1761921109321,0.0002,3857.2,3857.1,4.51083394]
[1761921109921,0.0002,3857.2,3857.1,4.53676015]
[1761921110335,0.0002,3857.2,3857.1,4.51083394]
[1761921110754,0.0002,3857.2,3857.1,4.53676015]
[1761921112021,0.0002,3857.2,3857.1,4.51083394]
[1761921112223,0.0002,3857.2,3856.1,0.25932937]
[1761921112427,0.0002,3857.2,3857.1,2.59262139]
[1761921112846,0.0002,3857.2,3857.1,2.6185476]
[1761921113739,0.0002,3857.2,3857.1,2.59262139]
[1761921115772,0.0002,3857.2,3857.1,2.6185476]
[1761921115944,0.0002,3857.2,3857.1,2.59262139]
[1761921117145,0.0002,3857.2,3857.1,3.27704821]
[1761921117672,0.005,3858.7,3857.9,2.59208377]
[1761921117975,0.410504,3858.7,3857.9,2.59208377]
[1761921118149,0.005,3858.7,3857.9,2.6180046]
[1761921118354,0.005,3858.7,3857.9,4.0176846]
[1761921118767,0.005,3858.7,3857.9,3.99176377]
[1761921118943,0.005,3858.7,3857.9,4.6760776]
[1761921119345,0.005,3858.7,3857.9,11.28539707]
[1761921119545,0.005,3858.7,3857.9,11.25947624]
[1761921119931,0.005,3858.7,3857.9,4.77975677]
[1761921120145,0.1338,3858.7,3857.9,4.77975677]
[1761921122472,0.1288,3858.3,3857.9,4.65015677]
[1761921122681,0.005,3858.7,3857.9,11.15579707]
[1761921122859,0.005,3858.7,3857.9,11.12987624]
[1761921123044,0.001,3859.6,3859.5,2.59100919]
[1761921123245,0.001,3859.6,3858.6,1.39968]
[1761921123580,0.001,3859.6,3858.7,0.39912985]
[1761921123784,0.001,3859.6,3857.9,2.058073]
[1761921124202,0.001,3859.6,3859.1,2.59121068]
[1761921124405,0.001,3859.6,3859.2,2.61711661]
[1761921124604,0.001,3859.6,3858.0,2.59201658]
[1761921124605,0.001,3859.6,3856.8,2.59281403]
[1761921124902,0.405504,3859.2,3858.4,2.5917316]
[1761921125213,0.001,3858.8,3858.4,2.5917316]
[1761921125414,0.001,3858.8,3858.5,0.0259168]
[1761921125616,0.001,3858.8,3858.6,2.59156069]
[1761921125915,0.001,3858.8,3858.5,2.59166896]
[1761921126112,0.001,3858.8,3858.7,2.59154637]
[1761921126408,0.001,3858.8,3857.4,2.59241976]
[1761921126611,0.001,3858.8,3858.7,2.59154637]
[1761921127405,0.001,3858.8,3857.6,2.59228535]
[1761921127611,0.001,3858.8,3857.7,1.42560218]
[1761921127826,0.001,3858.8,3858.6,2.59155149]
[1761921128032,0.001,3858.8,3858.7,2.61746183]
[1761921128588,0.001,3858.8,3858.7,3.13837149]
[1761921129022,0.001,3858.8,3858.7,4.51213603]
[1761921129325,0.001,3858.8,3858.7,11.01777096]
[1761921129627,0.001,3858.8,3858.7,10.9918555]
[1761921129922,0.0002,3858.8,3858.7,10.9918555]
[1761921131427,0.001,3860.0,3859.9,2.59074069]
[1761921131591,0.001,3860.0,3859.9,3.99042069]
[1761921131996,0.001,3860.0,3859.9,4.01632809]
[1761921134330,0.001,3860.0,3859.9,3.99042069]
[1761921134535,0.001,3860.0,3859.9,4.01632809]
[1761921134832,0.001,3860.0,3859.9,4.65113634]
[1761921135019,0.001,3860.0,3859.9,4.67704374]
[1761921135419,0.001,3860.0,3859.9,4.65113634]
[1761921136150,0.001,3860.0,3859.9,2.59074069]
[1761921136311,0.001,3860.0,3858.8,1.09918555]
[1761921136650,0.001,3860.0,3858.9,0.1288]
[1761921136861,0.001,3860.0,3858.1,0.005]
[1761921137022,0.001,3860.0,3859.4,2.59106689]
[1761921137351,0.405504,3859.7,3859.5,0.02591009]
[1761921137519,0.405504,3859.7,3859.6,2.59094206]
[1761921137722,0.405504,3859.7,3859.6,3.10914225]
[1761921137943,0.405504,3859.7,3859.6,2.59094206]
[1761921138114,0.001,3860.0,3859.5,0.02591009]
[1761921138321,0.001,3860.0,3858.8,0.1288]
[1761921138530,0.001,3860.0,3859.9,2.59074069]
[1761921139105,0.001,3860.0,3858.8,1.39968]
[1761921139241,0.001,3860.0,3858.1,0.005]
[1761921139242,0.001,3860.0,3858.9,0.3991287]
[1761921139549,0.001,3860.0,3859.9,2.59074069]
[1761921139733,0.001,3860.0,3859.6,2.59090524]
[1761921139936,0.001,3860.0,3858.9,1.39968]
[1761921140137,0.405504,3859.7,3859.6,2.59094206]
[1761921140812,0.405504,3859.7,3859.5,2.59100181]
[1761921141157,0.405504,3859.7,3858.3,2.59181504]
[1761921141158,0.405504,3859.7,3859.4,2.59102735]
[1761921141459,0.001,3860.0,3859.4,2.59102735]
[1761921141752,0.001,3860.0,3858.1,0.005]
[1761921142057,0.405504,3859.8,3858.3,2.59181504]
[1761921142258,0.405504,3859.8,3859.1,2.59123264]
[1761921142412,0.405504,3859.8,3859.2,2.59119687]
[1761921142614,0.405504,3859.8,3858.2,0.25970122]
[1761921142850,0.405504,3859.8,3859.2,2.59116794]
[1761921143262,0.001,3860.0,3859.3,0.02591143]
[1761921143469,0.001,3860.0,3858.6,1.39968]
[1761921143622,0.001,3860.0,3858.7,0.16847521]
[1761921144047,0.405504,3859.6,3858.9,1.39968]
[1761921144354,0.405504,3859.6,3859.5,2.59100919]
[1761921144960,0.001,3860.0,3859.5,2.59100919]
[1761921145144,0.001,3860.0,3859.4,2.59101674]
[1761921145341,0.001,3860.0,3859.5,2.59099047]
[1761921145734,0.001,3860.0,3858.1,1.40668]
[1761921145918,0.001,3860.0,3858.4,2.59174787]
[1761921146119,0.001,3860.0,3858.4,3.99142787]
[1761921146319,0.001,3860.0,3858.5,1.39968]
[1761921146668,0.001,3860.0,3859.8,2.59075621]
[1761921146998,0.001,3860.0,3858.7,1.39968]
[1761921147170,0.001,3860.0,3859.6,2.59088785]
[1761921147360,0.001,3860.0,3859.0,2.59131099]
[1761921147559,0.001,3860.0,3859.7,2.5908249]
[1761921147870,0.001,3860.0,3859.0,2.5913449]
[1761921148199,0.001,3860.0,3858.8,0.53909735]
[1761921148382,0.001,3860.0,3858.9,0.19387774]
[1761921148973,0.001,3860.0,3859.6,2.5908866]
[1761921149557,0.001,3860.0,3858.9,0.19387774]
[1761921149558,0.001,3860.0,3859.7,0.02590874]
[1761921149761,0.001,3860.0,3858.9,0.19387774]
[1761921149762,0.001,3860.0,3859.5,2.59099427]
[1761921150070,0.001,3860.0,3858.9,0.19387774]
[1761921150264,0.001,3860.0,3858.5,2.5916807]
[1761921150603,0.001,3860.0,3859.6,2.59090159]
[1761921150906,0.001,3860.0,3859.7,2.59084144]
[1761921151377,0.001,3860.0,3859.9,2.59074069]
[1761921152002,0.001,3860.0,3859.9,2.61664809]
[1761921152405,0.001,3860.0,3859.9,3.08883941]
[1761921152788,0.001,3860.0,3859.9,4.48851941]
[1761921153579,0.001,3860.6,3860.5,2.59033803]
[1761921153793,0.001,3860.6,3860.5,3.99001803]
[1761921155097,0.0002,3860.6,3860.5,3.99001803]
[1761921155300,0.0002,3860.6,3860.5,4.66094197]
[1761921155712,0.0002,3860.6,3860.5,3.26126197]
[1761921156227,0.001,3861.5,3860.9,3.98974967]
[1761921156425,0.001,3861.5,3860.9,4.01565036]
[1761921157122,0.001,3861.5,3860.9,3.98974967]
[1761921157320,0.001,3861.5,3860.9,4.90677212]
[1761921157725,0.405504,3861.4,3860.5,0.67092394]
[1761921157946,0.405504,3861.4,3860.8,0.02590136]
[1761921158099,0.405504,3861.4,3860.4,0.02590405]
[1761921158286,0.405504,3861.4,3860.9,2.59006967]
[1761921158484,0.405504,3861.4,3858.8,1.39968]
[1761921158689,0.405504,3861.4,3860.9,2.59006967]
[1761921159116,0.405504,3860.9,3859.2,2.59121061]
[1761921159323,0.405504,3860.9,3860.8,0.002]
[1761921160301,0.405504,3860.9,3860.8,2.59213675]
[1761921162032,0.405504,3860.9,3860.8,0.002]
[1761921163467,6.61296378,3860.9,3860.8,0.002]
[1761921163630,32.85992416,3860.9,3860.8,0.002]
[1761921164217,27.09799316,3860.9,3860.8,0.002]
[1761921164430,19.67623916,3860.9,3860.8,0.002]
[1761921164773,18.79657316,3860.9,3860.8,0.002]
[1761921165494,14.00830116,3860.9,3860.8,0.002]
[1761921165630,16.56049216,3860.9,3860.8,0.002]
[1761921165964,14.78449216,3860.9,3860.8,0.002]
[1761921166565,8.67416016,3860.9,3860.8,0.002]
[1761921166742,25.27916816,3860.9,3860.8,0.002]